[Event "Titled Tuesday Blitz April 4 Late 2023"]
[White "Ehlvest, Jaan"]
[Black "Chigaev, Maksim"]
[WhiteFideId "4500016"]
[BlackFideId "4108116"]
[WhiteElo "2442"]
[BlackElo "2547"]
[Result "0-1"]
[Round "02"]
[TimeControl "180+2"]
[Date "2023.04.04"]
[WhiteClock "0:00:03"]
[BlackClock "0:00:46"]

1. e4 {[%clk 0:02:59]}  c5 {[%clk 0:02:59]} 2. Nf3 {[%clk 0:02:53]}  Nc6 {[%clk 0:03:00]} 3. d4 {[%clk 0:02:52]}  cxd4 {[%clk 0:03:00]} 4. Nxd4 {[%clk 0:02:53]}  Nf6 {[%clk 0:03:01]} 5. Nc3 {[%clk 0:02:53]}  e5 {[%clk 0:03:01]} 6. Ndb5 {[%clk 0:02:53]}  d6 {[%clk 0:03:02]} 7. Bg5 {[%clk 0:02:52]}  a6 {[%clk 0:03:02]} 8. Na3 {[%clk 0:02:52]}  b5 {[%clk 0:03:02]} 9. Nd5 {[%clk 0:02:52]}  Be7 {[%clk 0:03:03]} 10. Bxf6 {[%clk 0:02:52]}  Bxf6 {[%clk 0:03:04]} 11. c3 {[%clk 0:02:51]}  Rb8 {[%clk 0:03:03]} 12. Nc2 {[%clk 0:02:47]}  Bg5 {[%clk 0:03:02]} 13. g3 {[%clk 0:02:46]}  O-O {[%clk 0:02:58]} 14. h4 {[%clk 0:02:46]}  Bh6 {[%clk 0:02:58]} 15. Bh3 {[%clk 0:02:45]}  Be6 {[%clk 0:02:57]} 16. Kf1 {[%clk 0:02:43]}  a5 {[%clk 0:02:51]} 17. Kg2 {[%clk 0:02:40]}  Ne7 {[%clk 0:02:52]} 18. Bxe6 {[%clk 0:02:27]}  fxe6 {[%clk 0:02:51]} 19. Nde3 {[%clk 0:02:28]}  Bxe3 {[%clk 0:02:37]} 20. Nxe3 {[%clk 0:02:27]}  Qd7 {[%clk 0:02:33]} 21. h5 {[%clk 0:02:17]}  h6 {[%clk 0:02:28]} 22. Qe2 {[%clk 0:02:03]}  Qc6 {[%clk 0:02:19]} 23. Ng4 {[%clk 0:02:01]}  b4 {[%clk 0:01:50]} 24. Rac1 {[%clk 0:01:49]}  bxc3 {[%clk 0:01:47]} 25. Rxc3 {[%clk 0:01:49]}  Qb7 {[%clk 0:01:48]} 26. Rd1 {[%clk 0:01:39]}  Nf5 {[%clk 0:01:33]} 27. Qc4 {[%clk 0:00:55]}  Nd4 {[%clk 0:01:20]} 28. Rxd4 {[%clk 0:00:52]}  exd4 {[%clk 0:01:21]} 29. Qxe6+ {[%clk 0:00:40]}  Kh8 {[%clk 0:01:19]} 30. Rb3 {[%clk 0:00:30]}  Qc8 {[%clk 0:01:10]} 31. Qg6 {[%clk 0:00:21]}  Rxb3 {[%clk 0:01:01]} 32. axb3 {[%clk 0:00:21]}  Qd7 {[%clk 0:00:50]} 33. e5 {[%clk 0:00:07]}  dxe5 {[%clk 0:00:48]} 34. Qe4 {[%clk 0:00:03]}  Qf5 {[%clk 0:00:46]} 0-1


[Site "https://www.chess.com"]

[Event "Titled Tuesday Blitz April 4 Late 2023"]
[White "Zhigalko, Sergei"]
[Black "Plotnikov, Pavel"]
[WhiteFideId "13502956"]
[BlackFideId "4170342"]
[WhiteElo "2626"]
[BlackElo "2298"]
[Result "1-0"]
[Round "02"]
[TimeControl "180+2"]
[Date "2023.04.04"]
[WhiteClock "0:00:05"]
[BlackClock "0:00:08"]

1. e4 {[%clk 0:03:00]}  e6 {[%clk 0:03:00]} 2. d4 {[%clk 0:03:00]}  d5 {[%clk 0:03:00]} 3. e5 {[%clk 0:03:00]}  Ne7 {[%clk 0:03:00]} 4. Nf3 {[%clk 0:03:00]}  Nf5 {[%clk 0:02:59]} 5. Bd3 {[%clk 0:02:59]}  c5 {[%clk 0:02:59]} 6. c3 {[%clk 0:02:59]}  Nc6 {[%clk 0:02:59]} 7. dxc5 {[%clk 0:02:49]}  Bxc5 {[%clk 0:02:58]} 8. O-O {[%clk 0:02:49]}  a6 {[%clk 0:02:56]} 9. Re1 {[%clk 0:02:48]}  O-O {[%clk 0:02:50]} 10. Nbd2 {[%clk 0:02:46]}  b5 {[%clk 0:02:44]} 11. Nb3 {[%clk 0:02:44]}  Be7 {[%clk 0:02:43]} 12. Bf4 {[%clk 0:02:37]}  h6 {[%clk 0:02:41]} 13. Qe2 {[%clk 0:02:28]}  b4 {[%clk 0:02:36]} 14. c4 {[%clk 0:02:15]}  dxc4 {[%clk 0:02:30]} 15. Bxc4 {[%clk 0:02:16]}  Qb6 {[%clk 0:02:30]} 16. Rad1 {[%clk 0:02:10]}  a5 {[%clk 0:02:24]} 17. Nbd2 {[%clk 0:01:57]}  Ncd4 {[%clk 0:02:14]} 18. Nxd4 {[%clk 0:01:57]}  Nxd4 {[%clk 0:02:15]} 19. Qg4 {[%clk 0:01:57]}  Kh8 {[%clk 0:02:12]} 20. Qh3 {[%clk 0:01:56]}  Nf5 {[%clk 0:01:37]} 21. Bd3 {[%clk 0:01:20]}  Rd8 {[%clk 0:01:15]} 22. Nc4 {[%clk 0:01:21]}  Qc5 {[%clk 0:01:09]} 23. Nd6 {[%clk 0:01:18]}  Bxd6 {[%clk 0:00:51]} 24. exd6 {[%clk 0:01:18]}  Kg8 {[%clk 0:00:35]} 25. Rc1 {[%clk 0:00:42]}  Qd4 {[%clk 0:00:32]} 26. Be5 {[%clk 0:00:35]}  Qb6 {[%clk 0:00:20]} 27. Bxf5 {[%clk 0:00:30]}  exf5 {[%clk 0:00:21]} 28. Qg3 {[%clk 0:00:30]}  g6 {[%clk 0:00:19]} 29. Qh4 {[%clk 0:00:20]}  Re8 {[%clk 0:00:17]} 30. Bd4 {[%clk 0:00:10]}  Qc6 {[%clk 0:00:10]} 31. Qf6 {[%clk 0:00:06]}  Rxe1+ {[%clk 0:00:08]} 32. Rxe1 {[%clk 0:00:05]} 1-0


[Site "https://www.chess.com"]

[Event "Titled Tuesday Blitz April 4 Late 2023"]
[White "Wadsworth, Matthew J"]
[Black "Hansen, Eric"]
[WhiteFideId "415804"]
[BlackFideId "2606771"]
[WhiteElo "2330"]
[BlackElo "2561"]
[Result "0-1"]
[Round "02"]
[TimeControl "180+2"]
[Date "2023.04.04"]
[WhiteClock "0:00:05"]
[BlackClock "0:00:53"]

1. Nf3 {[%clk 0:03:00]}  d5 {[%clk 0:02:55]} 2. g3 {[%clk 0:02:59]}  c6 {[%clk 0:02:53]} 3. Bg2 {[%clk 0:02:59]}  Bf5 {[%clk 0:02:51]} 4. c4 {[%clk 0:02:58]}  e6 {[%clk 0:02:51]} 5. Qb3 {[%clk 0:02:53]}  Qb6 {[%clk 0:02:49]} 6. d3 {[%clk 0:02:53]}  Nd7 {[%clk 0:02:49]} 7. Be3 {[%clk 0:02:52]}  Bc5 {[%clk 0:02:46]} 8. Bxc5 {[%clk 0:02:43]}  Nxc5 {[%clk 0:02:46]} 9. Qc3 {[%clk 0:02:24]}  Nf6 {[%clk 0:02:45]} 10. Nbd2 {[%clk 0:02:18]}  a5 {[%clk 0:02:44]} 11. b3 {[%clk 0:02:02]}  Qb4 {[%clk 0:02:38]} 12. Rc1 {[%clk 0:02:00]}  Qxc3 {[%clk 0:02:18]} 13. Rxc3 {[%clk 0:01:59]}  Ncd7 {[%clk 0:02:19]} 14. O-O {[%clk 0:01:57]}  h6 {[%clk 0:02:16]} 15. cxd5 {[%clk 0:01:19]}  exd5 {[%clk 0:02:16]} 16. a3 {[%clk 0:01:13]}  O-O {[%clk 0:02:15]} 17. b4 {[%clk 0:01:06]}  axb4 {[%clk 0:02:13]} 18. axb4 {[%clk 0:01:06]}  Rfe8 {[%clk 0:02:13]} 19. Nd4 {[%clk 0:01:06]}  Bg4 {[%clk 0:02:12]} 20. N2f3 {[%clk 0:01:01]}  Ra2 {[%clk 0:02:10]} 21. h3 {[%clk 0:00:56]}  Bh5 {[%clk 0:02:09]} 22. g4 {[%clk 0:00:55]}  Bg6 {[%clk 0:02:09]} 23. Rb1 {[%clk 0:00:51]}  h5 {[%clk 0:01:57]} 24. g5 {[%clk 0:00:51]}  Nh7 {[%clk 0:01:58]} 25. h4 {[%clk 0:00:51]}  Nhf8 {[%clk 0:01:57]} 26. Bh3 {[%clk 0:00:52]}  f6 {[%clk 0:01:52]} 27. gxf6 {[%clk 0:00:48]}  gxf6 {[%clk 0:01:52]} 28. e3 {[%clk 0:00:36]}  Ne5 {[%clk 0:01:39]} 29. Rbb3 {[%clk 0:00:23]}  Ng4 {[%clk 0:01:35]} 30. Rc2 {[%clk 0:00:20]}  Rxc2 {[%clk 0:01:29]} 31. Nxc2 {[%clk 0:00:20]}  Ra8 {[%clk 0:01:29]} 32. b5 {[%clk 0:00:19]}  c5 {[%clk 0:01:27]} 33. Bxg4 {[%clk 0:00:18]}  hxg4 {[%clk 0:01:27]} 34. Nh2 {[%clk 0:00:18]}  Bf5 {[%clk 0:01:24]} 35. Ra3 {[%clk 0:00:18]}  Rxa3 {[%clk 0:01:19]} 36. Nxa3 {[%clk 0:00:18]}  Kf7 {[%clk 0:01:09]} 37. Kg2 {[%clk 0:00:18]}  Bxd3 {[%clk 0:01:05]} 38. Nxg4 {[%clk 0:00:16]}  c4 {[%clk 0:01:05]} 39. Kg3 {[%clk 0:00:07]}  c3 {[%clk 0:01:04]} 40. Kf4 {[%clk 0:00:07]}  Ne6+ {[%clk 0:00:57]} 41. Kf3 {[%clk 0:00:06]}  Nc7 {[%clk 0:00:53]} 42. b6 {[%clk 0:00:05]}  Nb5 {[%clk 0:00:53]} 0-1


[Site "https://www.chess.com"]

[Event "Titled Tuesday Blitz April 4 Late 2023"]
[White "Makarian, Rudik"]
[Black "Jocev, Milan"]
[WhiteFideId "44105681"]
[BlackFideId "900680"]
[WhiteElo "2430"]
[BlackElo "2304"]
[Result "1-0"]
[Round "02"]
[TimeControl "180+2"]
[Date "2023.04.04"]
[WhiteClock "0:00:08"]
[BlackClock "0:00:08"]

1. d4 {[%clk 0:03:00]}  d5 {[%clk 0:02:59]} 2. c4 {[%clk 0:03:01]}  c6 {[%clk 0:02:58]} 3. Nf3 {[%clk 0:03:02]}  Nf6 {[%clk 0:02:58]} 4. Nc3 {[%clk 0:03:02]}  dxc4 {[%clk 0:02:59]} 5. g3 {[%clk 0:03:01]}  g6 {[%clk 0:02:55]} 6. e4 {[%clk 0:03:00]}  Bg7 {[%clk 0:02:55]} 7. Bxc4 {[%clk 0:02:59]}  O-O {[%clk 0:02:54]} 8. O-O {[%clk 0:02:58]}  Bg4 {[%clk 0:02:53]} 9. Be2 {[%clk 0:02:55]}  a5 {[%clk 0:02:52]} 10. Be3 {[%clk 0:02:53]}  Na6 {[%clk 0:02:52]} 11. Ne5 {[%clk 0:02:52]}  Be6 {[%clk 0:02:48]} 12. a3 {[%clk 0:02:48]}  h5 {[%clk 0:02:40]} 13. h4 {[%clk 0:02:42]}  Nd7 {[%clk 0:02:30]} 14. Nf3 {[%clk 0:02:38]}  Bh3 {[%clk 0:02:26]} 15. Re1 {[%clk 0:02:38]}  Nc7 {[%clk 0:02:21]} 16. Ng5 {[%clk 0:02:37]}  Be6 {[%clk 0:02:18]} 17. Bf4 {[%clk 0:02:35]}  Bg4 {[%clk 0:02:06]} 18. Bxg4 {[%clk 0:02:27]}  hxg4 {[%clk 0:02:06]} 19. Bxc7 {[%clk 0:02:25]}  Qxc7 {[%clk 0:02:06]} 20. e5 {[%clk 0:02:26]}  Nb6 {[%clk 0:01:48]} 21. Qxg4 {[%clk 0:02:23]}  Rad8 {[%clk 0:01:45]} 22. h5 {[%clk 0:02:22]}  Qd7 {[%clk 0:01:45]} 23. e6 {[%clk 0:02:09]}  fxe6 {[%clk 0:01:17]} 24. hxg6 {[%clk 0:01:59]}  Rf6 {[%clk 0:00:54]} 25. Nce4 {[%clk 0:01:55]}  Rxg6 {[%clk 0:00:54]} 26. Kg2 {[%clk 0:01:26]}  Qd5 {[%clk 0:00:50]} 27. Qh5 {[%clk 0:01:15]}  Qf5 {[%clk 0:00:13]} 28. g4 {[%clk 0:01:04]}  Rh6 {[%clk 0:00:13]} 29. gxf5 {[%clk 0:01:05]}  Rxh5 {[%clk 0:00:14]} 30. Nxe6 {[%clk 0:01:05]}  Rd5 {[%clk 0:00:11]} 31. Ng3 {[%clk 0:01:04]}  Rh6 {[%clk 0:00:09]} 32. Re4 {[%clk 0:01:02]}  Bf6 {[%clk 0:00:08]} 33. Rc1 {[%clk 0:00:50]}  Nc8 {[%clk 0:00:07]} 34. Rg4+ {[%clk 0:00:43]}  Kf7 {[%clk 0:00:06]} 35. Rc5 {[%clk 0:00:32]}  Nd6 {[%clk 0:00:05]} 36. Rxd5 {[%clk 0:00:29]}  cxd5 {[%clk 0:00:06]} 37. a4 {[%clk 0:00:26]}  Rh4 {[%clk 0:00:06]} 38. Rxh4 {[%clk 0:00:21]}  Bxh4 {[%clk 0:00:07]} 39. Nf4 {[%clk 0:00:13]}  Bxg3 {[%clk 0:00:07]} 40. fxg3 {[%clk 0:00:11]}  Nxf5 {[%clk 0:00:07]} 41. Nxd5 {[%clk 0:00:10]}  Nxd4 {[%clk 0:00:07]} 42. g4 {[%clk 0:00:10]}  e5 {[%clk 0:00:06]} 43. Nc3 {[%clk 0:00:10]}  Kg6 {[%clk 0:00:05]} 44. Kg3 {[%clk 0:00:10]}  Ne6 {[%clk 0:00:04]} 45. Ne4 {[%clk 0:00:10]}  Nd4 {[%clk 0:00:04]} 46. Kf2 {[%clk 0:00:10]}  Nc2 {[%clk 0:00:03]} 47. Ke2 {[%clk 0:00:09]}  Nd4+ {[%clk 0:00:03]} 48. Kd3 {[%clk 0:00:10]}  Nf3 {[%clk 0:00:03]} 49. Kc4 {[%clk 0:00:10]}  Ng5 {[%clk 0:00:04]} 50. Kd5 {[%clk 0:00:09]}  Nf7 {[%clk 0:00:02]} 51. Ke6 {[%clk 0:00:08]}  Nh6 {[%clk 0:00:02]} 52. g5 {[%clk 0:00:08]}  Nf7 {[%clk 0:00:03]} 53. b3 {[%clk 0:00:07]}  b6 {[%clk 0:00:03]} 54. Kd5 {[%clk 0:00:05]}  Nd8 {[%clk 0:00:03]} 55. Kxe5 {[%clk 0:00:05]}  Nc6+ {[%clk 0:00:04]} 56. Kd5 {[%clk 0:00:05]}  Nb4+ {[%clk 0:00:04]} 57. Kc4 {[%clk 0:00:06]}  Nc2 {[%clk 0:00:05]} 58. Nc3 {[%clk 0:00:05]}  Nb4 {[%clk 0:00:05]} 59. Nd5 {[%clk 0:00:06]}  Nc6 {[%clk 0:00:05]} 60. Nxb6 {[%clk 0:00:06]}  Kxg5 {[%clk 0:00:06]} 61. Kb5 {[%clk 0:00:04]}  Nd4+ {[%clk 0:00:06]} 62. Kc4 {[%clk 0:00:05]}  Nc6 {[%clk 0:00:06]} 63. Nd7 {[%clk 0:00:03]}  Kf5 {[%clk 0:00:06]} 64. Nc5 {[%clk 0:00:03]}  Ke5 {[%clk 0:00:06]} 65. Nb7 {[%clk 0:00:03]}  Ke6 {[%clk 0:00:06]} 66. Kc5 {[%clk 0:00:02]}  Kd7 {[%clk 0:00:06]} 67. Kb6 {[%clk 0:00:03]}  Nd4 {[%clk 0:00:06]} 68. Nxa5 {[%clk 0:00:03]}  Kc8 {[%clk 0:00:05]} 69. Kc5 {[%clk 0:00:03]}  Ne6+ {[%clk 0:00:05]} 70. Kb4 {[%clk 0:00:04]}  Nc7 {[%clk 0:00:05]} 71. Nc4 {[%clk 0:00:05]}  Nd5+ {[%clk 0:00:06]} 72. Kc5 {[%clk 0:00:05]}  Nc7 {[%clk 0:00:06]} 73. b4 {[%clk 0:00:05]}  Na6+ {[%clk 0:00:07]} 74. Kb5 {[%clk 0:00:06]}  Kb7 {[%clk 0:00:07]} 75. Na5+ {[%clk 0:00:06]}  Ka7 {[%clk 0:00:07]} 76. Nc6+ {[%clk 0:00:06]}  Kb7 {[%clk 0:00:08]} 77. Nd4 {[%clk 0:00:07]}  Nc7+ {[%clk 0:00:08]} 78. Kc4 {[%clk 0:00:08]}  Kb6 {[%clk 0:00:08]} 79. Nb3 {[%clk 0:00:08]}  Na6 {[%clk 0:00:08]} 80. a5+ {[%clk 0:00:08]}  Kb7 {[%clk 0:00:08]} 81. Nc5+ {[%clk 0:00:08]} 1-0


[Site "https://www.chess.com"]

[Event "Titled Tuesday Blitz April 4 Late 2023"]
[White "Goroshkov, Maksym"]
[Black "Babazada, Khazar"]
[WhiteFideId "14142716"]
[BlackFideId "13413554"]
[WhiteElo "2322"]
[BlackElo "2351"]
[Result "1/2-1/2"]
[Round "02"]
[TimeControl "180+2"]
[Date "2023.04.04"]
[WhiteClock "0:00:07"]
[BlackClock "0:00:06"]

1. e4 {[%clk 0:03:00]}  c5 {[%clk 0:02:48]} 2. d4 {[%clk 0:02:49]}  cxd4 {[%clk 0:02:48]} 3. c3 {[%clk 0:02:49]}  d3 {[%clk 0:02:48]} 4. Bxd3 {[%clk 0:02:49]}  g6 {[%clk 0:02:48]} 5. Nf3 {[%clk 0:02:49]}  Bg7 {[%clk 0:02:49]} 6. O-O {[%clk 0:02:49]}  Nc6 {[%clk 0:02:48]} 7. Nbd2 {[%clk 0:02:50]}  Nf6 {[%clk 0:02:47]} 8. Nb3 {[%clk 0:02:49]}  O-O {[%clk 0:02:46]} 9. Nbd4 {[%clk 0:02:49]}  d6 {[%clk 0:02:45]} 10. Bg5 {[%clk 0:02:49]}  Bg4 {[%clk 0:02:43]} 11. h3 {[%clk 0:02:47]}  Bxf3 {[%clk 0:02:42]} 12. Qxf3 {[%clk 0:02:48]}  Nd7 {[%clk 0:02:42]} 13. Nxc6 {[%clk 0:02:44]}  bxc6 {[%clk 0:02:42]} 14. Rad1 {[%clk 0:02:44]}  Rb8 {[%clk 0:02:40]} 15. Qe2 {[%clk 0:02:42]}  Nc5 {[%clk 0:02:31]} 16. Be3 {[%clk 0:02:22]}  Na4 {[%clk 0:02:18]} 17. Rd2 {[%clk 0:02:17]}  Qa5 {[%clk 0:02:18]} 18. Bd4 {[%clk 0:02:09]}  Bxd4 {[%clk 0:02:12]} 19. cxd4 {[%clk 0:02:10]}  e5 {[%clk 0:02:12]} 20. dxe5 {[%clk 0:02:03]}  Qxe5 {[%clk 0:02:13]} 21. b3 {[%clk 0:02:02]}  Nc5 {[%clk 0:02:12]} 22. Qe3 {[%clk 0:01:55]}  Rfe8 {[%clk 0:02:00]} 23. Re1 {[%clk 0:01:52]}  Rb7 {[%clk 0:01:51]} 24. Bb1 {[%clk 0:01:39]}  Rbe7 {[%clk 0:01:45]} 25. Rde2 {[%clk 0:01:36]}  Ne6 {[%clk 0:01:43]} 26. Rd2 {[%clk 0:01:25]}  Nf4 {[%clk 0:01:30]} 27. Rc1 {[%clk 0:01:06]}  c5 {[%clk 0:01:18]} 28. Qc3 {[%clk 0:01:05]}  Qg5 {[%clk 0:01:16]} 29. Qg3 {[%clk 0:00:56]}  Nxh3+ {[%clk 0:01:15]} 30. Qxh3 {[%clk 0:00:52]}  Qxd2 {[%clk 0:01:14]} 31. Rf1 {[%clk 0:00:50]}  Re5 {[%clk 0:01:09]} 32. Qf3 {[%clk 0:00:43]}  Rh5 {[%clk 0:01:08]} 33. Rd1 {[%clk 0:00:41]}  Qh6 {[%clk 0:01:07]} 34. g3 {[%clk 0:00:41]}  Re6 {[%clk 0:01:01]} 35. Bd3 {[%clk 0:00:37]}  Rh2 {[%clk 0:00:58]} 36. Bc4 {[%clk 0:00:32]}  Re7 {[%clk 0:00:52]} 37. Rxd6 {[%clk 0:00:31]}  Rh5 {[%clk 0:00:23]} 38. Rf6 {[%clk 0:00:21]}  Qc1+ {[%clk 0:00:18]} 39. Bf1 {[%clk 0:00:21]}  Rd7 {[%clk 0:00:15]} 40. Kg2 {[%clk 0:00:13]}  Qg5 {[%clk 0:00:11]} 41. Bc4 {[%clk 0:00:11]}  Qc1 {[%clk 0:00:09]} 42. Bf1 {[%clk 0:00:09]}  Qh6 {[%clk 0:00:08]} 43. Kg1 {[%clk 0:00:08]}  Re5 {[%clk 0:00:07]} 44. Bc4 {[%clk 0:00:07]}  Qc1+ {[%clk 0:00:06]} 45. Kg2 {[%clk 0:00:08]}  Rh5 {[%clk 0:00:06]} 46. Bf1 {[%clk 0:00:07]} 1/2-1/2


[Site "https://www.chess.com"]

[Event "Titled Tuesday Blitz April 4 Late 2023"]
[White "Bachmann, Axel"]
[Black "Postnikov, Daniil"]
[WhiteFideId "3700488"]
[BlackFideId "4166329"]
[WhiteElo "2605"]
[BlackElo "2261"]
[Result "1-0"]
[Round "02"]
[TimeControl "180+2"]
[Date "2023.04.04"]
[WhiteClock "0:00:06"]
[BlackClock "0:00:05"]

1. Nf3 {[%clk 0:02:59]}  f5 {[%clk 0:02:59]} 2. c4 {[%clk 0:02:58]}  Nf6 {[%clk 0:02:59]} 3. g3 {[%clk 0:02:58]}  g6 {[%clk 0:02:59]} 4. Bg2 {[%clk 0:02:59]}  Bg7 {[%clk 0:03:00]} 5. O-O {[%clk 0:02:50]}  O-O {[%clk 0:03:01]} 6. d4 {[%clk 0:02:51]}  d6 {[%clk 0:03:02]} 7. Nc3 {[%clk 0:02:51]}  Qe8 {[%clk 0:03:03]} 8. b3 {[%clk 0:02:46]}  Na6 {[%clk 0:02:55]} 9. Ba3 {[%clk 0:02:36]}  c6 {[%clk 0:02:55]} 10. Re1 {[%clk 0:02:34]}  b5 {[%clk 0:02:54]} 11. cxb5 {[%clk 0:02:23]}  cxb5 {[%clk 0:02:55]} 12. Bb2 {[%clk 0:02:24]}  Bb7 {[%clk 0:02:55]} 13. Rc1 {[%clk 0:02:13]}  Rc8 {[%clk 0:02:51]} 14. Ng5 {[%clk 0:02:06]}  Bxg2 {[%clk 0:02:48]} 15. Kxg2 {[%clk 0:02:07]}  Nc7 {[%clk 0:02:05]} 16. Qd3 {[%clk 0:01:49]}  Bh6 {[%clk 0:01:38]} 17. h4 {[%clk 0:01:45]}  b4 {[%clk 0:01:34]} 18. Na4 {[%clk 0:01:45]}  Ncd5 {[%clk 0:01:22]} 19. Rxc8 {[%clk 0:01:15]}  Qxc8 {[%clk 0:01:23]} 20. Rc1 {[%clk 0:01:14]}  Qb7 {[%clk 0:01:06]} 21. Kg1 {[%clk 0:01:03]}  Bxg5 {[%clk 0:00:56]} 22. hxg5 {[%clk 0:01:04]}  Ne4 {[%clk 0:00:57]} 23. Qc4 {[%clk 0:00:34]}  e6 {[%clk 0:00:38]} 24. Qc6 {[%clk 0:00:29]}  Qe7 {[%clk 0:00:38]} 25. Qa6 {[%clk 0:00:09]}  Qxg5 {[%clk 0:00:36]} 26. Rc8 {[%clk 0:00:09]}  f4 {[%clk 0:00:25]} 27. Bc1 {[%clk 0:00:08]}  fxg3 {[%clk 0:00:17]} 28. Rxf8+ {[%clk 0:00:07]}  Kxf8 {[%clk 0:00:18]} 29. Bxg5 {[%clk 0:00:07]}  gxf2+ {[%clk 0:00:12]} 30. Kf1 {[%clk 0:00:07]}  Nxg5 {[%clk 0:00:08]} 31. Qc8+ {[%clk 0:00:06]}  Kf7 {[%clk 0:00:08]} 32. Kxf2 {[%clk 0:00:07]}  Ne4+ {[%clk 0:00:08]} 33. Ke1 {[%clk 0:00:08]}  h5 {[%clk 0:00:08]} 34. Qb7+ {[%clk 0:00:08]}  Kf6 {[%clk 0:00:07]} 35. Nb2 {[%clk 0:00:09]}  h4 {[%clk 0:00:07]} 36. Qa8 {[%clk 0:00:09]}  Kg7 {[%clk 0:00:06]} 37. Qxa7+ {[%clk 0:00:07]}  Kh6 {[%clk 0:00:07]} 38. Qb8 {[%clk 0:00:07]}  Kg7 {[%clk 0:00:06]} 39. Qb7+ {[%clk 0:00:05]}  Kh6 {[%clk 0:00:04]} 40. Qc8 {[%clk 0:00:05]}  Ng5 {[%clk 0:00:04]} 41. Nd3 {[%clk 0:00:04]}  h3 {[%clk 0:00:03]} 42. Nf2 {[%clk 0:00:05]}  h2 {[%clk 0:00:03]} 43. Ng4+ {[%clk 0:00:05]}  Kh5 {[%clk 0:00:03]} 44. Nxh2 {[%clk 0:00:06]}  Kh4 {[%clk 0:00:04]} 45. Qd8 {[%clk 0:00:06]}  Kh5 {[%clk 0:00:03]} 46. Nf3 {[%clk 0:00:06]}  Nxf3+ {[%clk 0:00:03]} 47. exf3 {[%clk 0:00:07]}  g5 {[%clk 0:00:03]} 48. Qxd6 {[%clk 0:00:07]}  Nf4 {[%clk 0:00:04]} 49. Kf1 {[%clk 0:00:05]}  Nd3 {[%clk 0:00:03]} 50. Qxe6 {[%clk 0:00:05]}  Nc1 {[%clk 0:00:04]} 51. Qg4+ {[%clk 0:00:04]}  Kh6 {[%clk 0:00:05]} 52. f4 {[%clk 0:00:04]}  gxf4 {[%clk 0:00:04]} 53. Qxf4+ {[%clk 0:00:05]}  Kg6 {[%clk 0:00:05]} 54. Qxc1 {[%clk 0:00:06]} 1-0


[Site "https://www.chess.com"]

[Event "Titled Tuesday Blitz April 4 Late 2023"]
[White "Svane, Frederik"]
[Black "Fiorito, Francisco"]
[WhiteFideId "12923044"]
[BlackFideId "180165"]
[WhiteElo "2502"]
[BlackElo "2341"]
[Result "1-0"]
[Round "02"]
[TimeControl "180+2"]
[Date "2023.04.04"]
[WhiteClock "0:02:27"]
[BlackClock "0:00:21"]

1. c4 {[%clk 0:03:00]}  c5 {[%clk 0:02:59]} 2. g3 {[%clk 0:03:00]}  g6 {[%clk 0:02:57]} 3. Bg2 {[%clk 0:03:01]}  Bg7 {[%clk 0:02:58]} 4. Nc3 {[%clk 0:03:02]}  Nc6 {[%clk 0:02:55]} 5. d3 {[%clk 0:03:02]}  e6 {[%clk 0:02:55]} 6. Be3 {[%clk 0:03:02]}  d6 {[%clk 0:02:53]} 7. Nf3 {[%clk 0:02:59]}  Nge7 {[%clk 0:02:53]} 8. d4 {[%clk 0:02:59]}  Nf5 {[%clk 0:02:22]} 9. Bg5 {[%clk 0:02:59]}  f6 {[%clk 0:02:13]} 10. d5 {[%clk 0:02:55]}  fxg5 {[%clk 0:02:08]} 11. dxc6 {[%clk 0:02:55]}  bxc6 {[%clk 0:02:05]} 12. Nxg5 {[%clk 0:02:56]}  Bd7 {[%clk 0:01:54]} 13. Nge4 {[%clk 0:02:54]}  Qe7 {[%clk 0:01:54]} 14. g4 {[%clk 0:02:44]}  Nd4 {[%clk 0:00:43]} 15. e3 {[%clk 0:02:43]}  d5 {[%clk 0:00:43]} 16. Nd2 {[%clk 0:02:44]}  dxc4 {[%clk 0:00:38]} 17. Nxc4 {[%clk 0:02:39]}  O-O {[%clk 0:00:35]} 18. exd4 {[%clk 0:02:37]}  cxd4 {[%clk 0:00:36]} 19. Ne4 {[%clk 0:02:37]}  Qb4+ {[%clk 0:00:27]} 20. Ned2 {[%clk 0:02:34]}  e5 {[%clk 0:00:23]} 21. O-O {[%clk 0:02:32]}  Rae8 {[%clk 0:00:20]} 22. Qb3 {[%clk 0:02:27]}  Qxb3 {[%clk 0:00:21]} 23. axb3 {[%clk 0:02:28]}  Bxg4 {[%clk 0:00:21]} 24. Bxc6 {[%clk 0:02:27]} 1-0


[Site "https://www.chess.com"]

[Event "Titled Tuesday Blitz April 4 Late 2023"]
[White "Vakhlamov, Igor L."]
[Black "Romanchuk, Viktor"]
[WhiteFideId "24126748"]
[BlackFideId "14109271"]
[WhiteElo "2400"]
[BlackElo "2242"]
[Result "1/2-1/2"]
[Round "02"]
[TimeControl "180+2"]
[Date "2023.04.04"]
[WhiteClock "0:00:27"]
[BlackClock "0:00:18"]

1. e4 {[%clk 0:02:59]}  e6 {[%clk 0:02:57]} 2. d4 {[%clk 0:02:59]}  d5 {[%clk 0:02:58]} 3. Nc3 {[%clk 0:03:00]}  dxe4 {[%clk 0:02:58]} 4. Nxe4 {[%clk 0:03:01]}  Nd7 {[%clk 0:02:58]} 5. Nf3 {[%clk 0:03:00]}  Ngf6 {[%clk 0:02:58]} 6. Nxf6+ {[%clk 0:03:00]}  Nxf6 {[%clk 0:02:59]} 7. g3 {[%clk 0:03:00]}  b6 {[%clk 0:02:58]} 8. Bb5+ {[%clk 0:03:00]}  Bd7 {[%clk 0:02:57]} 9. a4 {[%clk 0:02:50]}  a6 {[%clk 0:02:50]} 10. Be2 {[%clk 0:02:51]}  Bc6 {[%clk 0:02:43]} 11. O-O {[%clk 0:02:51]}  Be7 {[%clk 0:02:39]} 12. Re1 {[%clk 0:02:47]}  O-O {[%clk 0:02:38]} 13. Ne5 {[%clk 0:02:47]}  Bb7 {[%clk 0:02:37]} 14. c3 {[%clk 0:02:40]}  c5 {[%clk 0:02:34]} 15. Be3 {[%clk 0:02:28]}  Qc7 {[%clk 0:02:24]} 16. Bf3 {[%clk 0:02:26]}  Rad8 {[%clk 0:02:18]} 17. Bxb7 {[%clk 0:02:24]}  Qxb7 {[%clk 0:02:18]} 18. Qe2 {[%clk 0:02:25]}  Nd5 {[%clk 0:02:10]} 19. Rad1 {[%clk 0:02:23]}  Nxe3 {[%clk 0:02:06]} 20. fxe3 {[%clk 0:02:10]}  b5 {[%clk 0:01:54]} 21. axb5 {[%clk 0:02:10]}  axb5 {[%clk 0:01:55]} 22. Qg2 {[%clk 0:02:10]}  Qxg2+ {[%clk 0:01:48]} 23. Kxg2 {[%clk 0:02:11]}  Bd6 {[%clk 0:01:44]} 24. Nf3 {[%clk 0:01:59]}  Ra8 {[%clk 0:01:40]} 25. Ra1 {[%clk 0:01:59]}  f6 {[%clk 0:01:35]} 26. Nd2 {[%clk 0:01:59]}  Be7 {[%clk 0:01:30]} 27. Kf2 {[%clk 0:01:52]}  Kf7 {[%clk 0:01:24]} 28. Ke2 {[%clk 0:01:51]}  Rfc8 {[%clk 0:01:14]} 29. Kd3 {[%clk 0:01:46]}  h5 {[%clk 0:01:12]} 30. Ne4 {[%clk 0:01:43]}  c4+ {[%clk 0:00:56]} 31. Ke2 {[%clk 0:01:41]}  f5 {[%clk 0:00:56]} 32. Nd2 {[%clk 0:01:40]}  g5 {[%clk 0:00:52]} 33. e4 {[%clk 0:01:35]}  g4 {[%clk 0:00:41]} 34. Rf1 {[%clk 0:01:34]}  Kg6 {[%clk 0:00:40]} 35. Rfd1 {[%clk 0:01:09]}  Bg5 {[%clk 0:00:39]} 36. exf5+ {[%clk 0:01:10]}  exf5 {[%clk 0:00:37]} 37. Nf1 {[%clk 0:01:09]}  f4 {[%clk 0:00:37]} 38. gxf4 {[%clk 0:01:07]}  Bxf4 {[%clk 0:00:37]} 39. Kf2 {[%clk 0:01:07]}  Kf5 {[%clk 0:00:28]} 40. Ng3+ {[%clk 0:01:05]}  Bxg3+ {[%clk 0:00:27]} 41. Kxg3 {[%clk 0:01:05]}  Kg5 {[%clk 0:00:27]} 42. Re1 {[%clk 0:01:03]}  h4+ {[%clk 0:00:26]} 43. Kg2 {[%clk 0:01:04]}  Rxa1 {[%clk 0:00:22]} 44. Rxa1 {[%clk 0:01:04]}  Kf4 {[%clk 0:00:22]} 45. Ra5 {[%clk 0:00:53]}  Rb8 {[%clk 0:00:22]} 46. Ra7 {[%clk 0:00:45]}  b4 {[%clk 0:00:21]} 47. Rf7+ {[%clk 0:00:33]}  Ke4 {[%clk 0:00:20]} 48. Rg7 {[%clk 0:00:30]}  Kf4 {[%clk 0:00:19]} 49. Rf7+ {[%clk 0:00:29]}  Ke4 {[%clk 0:00:19]} 50. Rg7 {[%clk 0:00:29]}  Kf4 {[%clk 0:00:18]} 51. Rf7+ {[%clk 0:00:27]} 1/2-1/2


[Site "https://www.chess.com"]